fUSD/lending_fUSD_20250623
["ID","MTS","AMOUNT","RATE_DAILY","PERIOD"]
[367173486,1750686653074,-709.79,0.00024657,2]
[367173487,1750686653083,-490.0,0.00024657,2]
[367173488,1750686653092,-716.9,0.00024657,2]
[367173489,1750686653105,-678.77,0.00024657,2]
[367173490,1750686653115,-624.2,0.00024657,2]
[367173491,1750686653124,-1516.09,0.00024657,2]
[367173492,1750686653133,-490.0,0.00024657,2]
[367173493,1750686653143,-490.0,0.00024657,2]
[367173494,1750686653153,-560.07,0.00024657,2]
[367173495,1750686653162,-490.0,0.00024657,2]
[367173496,1750686653171,-490.0,0.00024657,2]
[367173497,1750686653180,-1630.62,0.00024657,2]
[367173498,1750686653190,-490.0,0.00024657,2]
[367173499,1750686653200,-490.0,0.00024657,2]
[367173500,1750686653209,-814.67,0.00024657,2]
[367173501,1750686653218,-490.0,0.00024657,2]
[367173502,1750686653228,-245.57662994,0.00024657,2]
[367173503,1750686653237,-879.33,0.00024657,2]
[367173504,1750686653247,-1124.53,0.00024657,2]
[367173505,1750686653256,-490.0,0.00024657,2]
[367173506,1750686653266,-677.59,0.00024657,2]
[367173507,1750686653277,-284.80056714,0.00024657,2]
[367173508,1750686653287,-1707.88,0.00024657,2]
[367173509,1750686653296,-588.28,0.00024657,2]
[367173510,1750686653305,-490.0,0.00024657,2]
[367173511,1750686653315,-490.0,0.00024657,2]
[367173512,1750686653324,-231.67949151,0.00024657,2]
[367173513,1750686653333,-507.44,0.00024657,2]
[367173514,1750686653347,-490.0,0.00024657,2]
[367173515,1750686653359,-570.69,0.00024657,2]
[367173516,1750686653368,-490.0,0.00024657,2]
[367173517,1750686653377,-490.0,0.00024657,2]
[367173518,1750686653387,-1894.49,0.00024657,2]
[367173519,1750686653396,-1440.1,0.00024657,2]
[367173520,1750686653407,-359.9063774,0.00024657,2]
[367173521,1750686653416,-490.0,0.00024657,2]
[367173522,1750686653426,-1644.45,0.00024657,2]
[367173523,1750686653438,-433.55,0.00024657,2]
[367173524,1750686653448,-490.0,0.00024657,2]
[367173525,1750686653458,-507.52810228,0.00024657,2]
[367173526,1750686653467,-2117.93,0.00024657,2]
[367173527,1750686653477,-663.95,0.00024657,2]
[367173528,1750686653487,-490.0,0.00024657,2]
[367173529,1750686653497,-544.03,0.00024657,2]
[367173530,1750686653508,-490.0,0.00024657,2]
[367173531,1750686653517,-967.98,0.00024657,2]
[367173532,1750686653527,-1646.92,0.00024657,2]
[367173533,1750686653537,-490.0,0.00024657,2]
[367173534,1750686653547,-500.0,0.00024657,2]
[367173535,1750686653556,-500.0,0.00024657,2]
[367173536,1750686653566,-500.0,0.00024657,2]
[367173537,1750686653575,-500.0,0.00024657,2]
[367173538,1750686653584,-500.0,0.00024657,2]
[367173539,1750686653597,-500.0,0.00024657,2]
[367173540,1750686653607,-490.0,0.00024657,2]
[367173541,1750686653616,-1977.85,0.00024657,2]
[367173542,1750686653625,-500.0,0.00024657,2]
[367173543,1750686653635,-500.0,0.00024657,2]
[367173544,1750686653644,-17579.7,0.00024657,2]
[367173545,1750686653653,-500.0,0.00024657,2]
[367173546,1750686653663,-500.0,0.00024657,2]
[367173547,1750686653673,-500.0,0.00024657,2]
[367173548,1750686653682,-490.0,0.00024657,2]
[367173549,1750686653691,-625.14,0.00024657,2]
[367173550,1750686653700,-995.25,0.00024657,2]
[367173551,1750686653710,-954.53,0.00024657,2]
[367173552,1750686653719,-1054.13,0.00024657,2]
[367173553,1750686653729,-490.0,0.00024657,2]
[367173554,1750686653739,-490.0,0.00024657,2]
[367173555,1750686653748,-490.0,0.00024657,2]
[367173556,1750686653757,-490.0,0.00024657,2]
[367173557,1750686653766,-490.0,0.00024657,2]
[367173558,1750686653776,-1038.83,0.00024657,2]
[367173559,1750686653785,-1175.45,0.00024657,2]
[367173560,1750686653794,-490.0,0.00024657,2]
[367173561,1750686653804,-490.0,0.00024657,2]
[367173562,1750686653814,-490.0,0.00024657,2]
[367173563,1750686653824,-490.0,0.00024657,2]
[367173564,1750686653833,-501.44,0.00024657,2]
[367173565,1750686653843,-490.0,0.00024657,2]
[367173566,1750686653856,-7311.25,0.00024657,2]
[367173567,1750686653865,-490.0,0.00024657,2]
[367173568,1750686653875,-583.68,0.00024657,2]
[367173569,1750686653884,-852.65,0.00024657,2]
[367173570,1750686653894,-490.0,0.00024657,2]
[367173571,1750686653903,-863.85,0.00024657,2]
[367173572,1750686653913,-784.37,0.00024657,2]
[367173573,1750686653922,-874.48,0.00024657,2]
[367173574,1750686653931,-490.0,0.00024657,2]
[367173575,1750686653942,-490.0,0.00024657,2]
[367173576,1750686653951,-746.0,0.00024657,2]
[367173577,1750686653960,-490.0,0.00024657,2]
[367173578,1750686653970,-205.88626423,0.00024657,2]
[367173579,1750686653979,-1321.19,0.00024657,2]
[367173580,1750686653988,-253.98372926,0.00024657,2]
[367173581,1750686653998,-490.0,0.00024657,2]
[367173582,1750686654007,-490.0,0.00024657,2]
[367173583,1750686654017,-490.0,0.00024657,2]
[367173584,1750686654026,-490.0,0.00024657,2]
[367173585,1750686654035,-860.45,0.00024657,2]
[367173586,1750686654045,-9357.37,0.00024657,2]
[367173587,1750686654054,-1248.11,0.00024657,2]
[367173588,1750686654063,-1903.85,0.00024657,2]
[367173589,1750686654072,-1033.71,0.00024657,2]
[367173590,1750686654081,-490.0,0.00024657,2]
[367173591,1750686654091,-579.41,0.00024657,2]
[367173592,1750686654104,-490.0,0.00024657,2]
[367173593,1750686654113,-490.0,0.00024657,2]
[367173594,1750686654124,-490.0,0.00024657,2]
[367173595,1750686654133,-1685.5,0.00024657,2]
[367173596,1750686654143,-891.31,0.00024657,2]
[367173597,1750686654153,-2936.7,0.00024657,2]
[367173598,1750686654162,-490.0,0.00024657,2]
[367173599,1750686654171,-490.0,0.00024657,2]
[367173600,1750686654181,-490.0,0.00024657,2]
[367173601,1750686654190,-1338.44,0.00024657,2]
[367173602,1750686654199,-490.0,0.00024657,2]
[367173603,1750686654208,-490.0,0.00024657,2]
[367173604,1750686654217,-3432.44,0.00024657,2]
[367173605,1750686654226,-490.0,0.00024657,2]
[367173606,1750686654236,-6715.86,0.00024657,2]
[367173607,1750686654245,-627.07461194,0.00024657,2]
[367173608,1750686654255,-490.0,0.00024657,2]
[367173609,1750686654264,-490.0,0.00024657,2]
[367173610,1750686654273,-1678.87,0.00024657,2]
[367173611,1750686654283,-490.0,0.00024657,2]
[367173612,1750686654292,-1338.2,0.00024657,2]
[367173613,1750686654302,-1200.65,0.00024657,2]
[367173614,1750686654311,-1625.54,0.00024657,2]
[367173615,1750686654321,-490.0,0.00024657,2]
[367173616,1750686654332,-490.0,0.00024657,2]
[367173617,1750686654341,-1028.32,0.00024657,2]
[367173618,1750686654354,-1187.95,0.00024657,2]
[367173619,1750686654363,-490.0,0.00024657,2]
[367173620,1750686654373,-2012.35,0.00024657,2]
[367173621,1750686654382,-218.03587518,0.00024657,2]
[367173622,1750686654392,-511.03,0.00024657,2]
[367173623,1750686654401,-1061.86,0.00024657,2]
[367173624,1750686654411,-490.0,0.00024657,2]
[367173625,1750686654420,-507.6406775,0.00024657,2]
[367173626,1750686654429,-1911.24,0.00024657,2]
[367173627,1750686654440,-490.0,0.00024657,2]
[367173628,1750686654449,-490.0,0.00024657,2]
[367173629,1750686654459,-490.0,0.00024657,2]
[367173630,1750686654468,-490.0,0.00024657,2]
[367173631,1750686654478,-4761.21,0.00024657,2]
[367173632,1750686654487,-1318.42,0.00024657,2]
[367173633,1750686654496,-490.0,0.00024657,2]
[367173634,1750686654505,-490.0,0.00024657,2]
[367173635,1750686654515,-875.95,0.00024657,2]
[367173636,1750686654524,-492.61,0.00024657,2]
[367173637,1750686654534,-558.73,0.00024657,2]
[367173638,1750686654544,-210.0,0.00024657,2]
[367173639,1750686654553,-513.51,0.00024657,2]
[367173640,1750686654563,-490.0,0.00024657,2]
[367173641,1750686654573,-490.0,0.00024657,2]
[367173642,1750686654582,-948.38,0.00024657,2]
[367173643,1750686654592,-1340.92,0.00024657,2]
[367173644,1750686654605,-490.0,0.00024657,2]
[367173645,1750686654615,-4327.44,0.00024657,2]
[367173646,1750686654624,-490.0,0.00024657,2]
[367173647,1750686654634,-798.76,0.00024657,2]
[367173648,1750686654643,-490.0,0.00024657,2]
[367173649,1750686654653,-490.0,0.00024657,2]
[367173650,1750686654662,-490.0,0.00024657,2]
[367173651,1750686654672,-1246.73,0.00024657,2]
[367173652,1750686654682,-490.0,0.00024657,2]
[367173653,1750686654691,-490.0,0.00024657,2]
[367173654,1750686654701,-490.0,0.00024657,2]
[367173655,1750686654710,-490.0,0.00024657,2]
[367173656,1750686654720,-490.0,0.00024657,2]
[367173657,1750686654729,-490.0,0.00024657,2]
[367173658,1750686654739,-490.0,0.00024657,2]
[367173659,1750686654748,-1719.12,0.00024657,2]
[367173660,1750686654757,-1710.2,0.00024657,2]
[367173661,1750686654766,-490.0,0.00024657,2]
[367173662,1750686654776,-490.0,0.00024657,2]
[367173663,1750686654785,-1247.37,0.00024657,2]
[367173664,1750686654795,-1222.33,0.00024657,2]
[367173665,1750686654804,-490.0,0.00024657,2]
[367173666,1750686654814,-490.0,0.00024657,2]
[367173667,1750686654823,-490.0,0.00024657,2]
[367173668,1750686654833,-1771.28,0.00024657,2]
[367173669,1750686654843,-490.0,0.00024657,2]
[367173670,1750686654855,-490.62662593,0.00024657,2]
[367173671,1750686654865,-1194.47,0.00024657,2]
[367173672,1750686654875,-490.0,0.00024657,2]
[367173673,1750686654884,-1072.78,0.00024657,2]
[367173674,1750686654893,-490.0,0.00024657,2]
[367173675,1750686654902,-490.0,0.00024657,2]
[367173676,1750686654912,-795.11,0.00024657,2]
[367173677,1750686654921,-2162.88,0.00024657,2]
[367173678,1750686654931,-867.49,0.00024657,2]
[367173679,1750686654940,-531.74,0.00024657,2]
[367173680,1750686654950,-1283.12,0.00024657,2]
[367173681,1750686654959,-490.0,0.00024657,2]
[367173682,1750686654969,-1624.3,0.00024657,2]
[367173683,1750686654979,-490.0,0.00024657,2]
[367173684,1750686654988,-713.24,0.00024657,2]
[367173685,1750686654998,-546.35,0.00024657,2]
[367173686,1750686655008,-500.0,0.00024657,2]
[367173687,1750686655017,-500.0,0.00024657,2]
[367173688,1750686655027,-490.0,0.00024657,2]
[367173689,1750686655037,-500.0,0.00024657,2]
[367173690,1750686655047,-500.0,0.00024657,2]
[367173691,1750686655056,-1420.03,0.00024657,2]
[367173692,1750686655066,-2482.99,0.00024657,2]
[367173693,1750686655076,-500.0,0.00024657,2]
[367173694,1750686655086,-990.52,0.00024657,2]
[367173695,1750686655096,-490.0,0.00024657,2]
[367173696,1750686655107,-490.0,0.00024657,2]
[367173697,1750686655116,-490.0,0.00024657,2]
[367173698,1750686655126,-490.0,0.00024657,2]
[367173699,1750686655135,-490.0,0.00024657,2]
[367173700,1750686655145,-490.0,0.00024657,2]
[367173701,1750686655155,-490.0,0.00024657,2]
[367173702,1750686655164,-928.62,0.00024657,2]
[367173703,1750686655174,-665.71,0.00024657,2]
[367173704,1750686655184,-1635.15,0.00024657,2]
[367173705,1750686655193,-793.97,0.00024657,2]
[367173706,1750686655203,-2109.93,0.00024657,2]
[367173707,1750686655212,-961.92,0.00024657,2]
[367173708,1750686655221,-490.0,0.00024657,2]
[367173709,1750686655231,-2235.59,0.00024657,2]
[367173710,1750686655240,-952.9,0.00024657,2]
[367173711,1750686655249,-1643.59,0.00024657,2]
[367173712,1750686655258,-2225.13,0.00024657,2]
[367173713,1750686655268,-490.0,0.00024657,2]
[367173714,1750686655277,-490.0,0.00024657,2]
[367173715,1750686655291,-1036.93,0.00024657,2]
[367173716,1750686655300,-490.0,0.00024657,2]
[367173717,1750686655309,-490.0,0.00024657,2]
[367173718,1750686655319,-2612.8,0.00024657,2]
[367173719,1750686655329,-490.0,0.00024657,2]
[367173720,1750686655338,-490.0,0.00024657,2]
[367173721,1750686655352,-490.0,0.00024657,2]
[367173722,1750686655362,-10643.58,0.00024657,2]
[367173723,1750686655372,-1231.97,0.00024657,2]
[367173724,1750686655381,-490.0,0.00024657,2]
[367173725,1750686655390,-490.0,0.00024657,2]
[367173726,1750686655399,-490.0,0.00024657,2]
[367173727,1750686655408,-856.1,0.00024657,2]
[367173728,1750686655417,-490.0,0.00024657,2]
[367173729,1750686655427,-2645.72,0.00024657,2]
[367173730,1750686655436,-490.0,0.00024657,2]
[367173731,1750686655445,-681.85,0.00024657,2]
[367173732,1750686655455,-490.0,0.00024657,2]
[367173733,1750686655465,-490.0,0.00024657,2]
[367173734,1750686655474,-1435.59,0.00024657,2]
[367173735,1750686655483,-490.0,0.00024657,2]
[367173736,1750686655492,-490.0,0.00024657,2]
[367173737,1750686655502,-2256.5,0.00024657,2]
[367173738,1750686655511,-490.0,0.00024657,2]
[367173739,1750686655520,-490.0,0.00024657,2]
[367173740,1750686655529,-1800.5,0.00024657,2]
[367173741,1750686655539,-2795.4,0.00024657,2]
[367173742,1750686655548,-490.0,0.00024657,2]
[367173743,1750686655558,-557.7,0.00024657,2]
[367173744,1750686655567,-1600.66,0.00024657,2]
[367173745,1750686655576,-499.9,0.00024657,2]
[367173746,1750686655585,-1999.29,0.00024657,2]
[367173747,1750686655594,-490.0,0.00024657,2]
[367173748,1750686655610,-490.0,0.00024657,2]
[367173749,1750686655619,-490.0,0.00024657,2]
[367173750,1750686655629,-1023.79,0.00024657,2]
[367173751,1750686655638,-490.0,0.00024657,2]
[367173752,1750686655648,-5543.99,0.00024657,2]
[367173753,1750686655658,-490.0,0.00024657,2]
[367173754,1750686655667,-491.82047903,0.00024657,2]
[367173755,1750686655676,-4033.27,0.00024657,2]
[367173756,1750686655686,-1239.45,0.00024657,2]
[367173757,1750686655695,-1577.98,0.00024657,2]
[367173758,1750686655705,-490.0,0.00024657,2]
[367173759,1750686655714,-809.09,0.00024657,2]
[367173760,1750686655724,-1852.52,0.00024657,2]
[367173761,1750686655734,-584.61398173,0.00024657,2]
[367173762,1750686655743,-1854.11,0.00024657,2]
[367173763,1750686655753,-490.0,0.00024657,2]
[367173764,1750686655763,-490.0,0.00024657,2]
[367173765,1750686655772,-490.0,0.00024657,2]
[367173766,1750686655782,-490.0,0.00024657,2]
[367173767,1750686655791,-491.79352016,0.00024657,2]
[367173768,1750686655800,-490.0,0.00024657,2]
[367173769,1750686655810,-2893.63,0.00024657,2]
[367173770,1750686655820,-1651.98,0.00024657,2]
[367173771,1750686655829,-1886.15,0.00024657,2]
[367173772,1750686655840,-7851.95,0.00024657,2]
[367173773,1750686655853,-2863.55,0.00024657,2]
[367173774,1750686655863,-710.33,0.00024657,2]
[367173775,1750686655873,-490.0,0.00024657,2]
[367173776,1750686655883,-490.0,0.00024657,2]
[367173777,1750686655893,-490.0,0.00024657,2]
[367173778,1750686655903,-490.0,0.00024657,2]
[367173779,1750686655913,-579.58,0.00024657,2]
[367173780,1750686655923,-9.61134406,0.00024657,2]
[367173781,1750686658054,-480.38865594,0.00024657,2]
[367173782,1750686658064,-667.29778247,0.00024657,2]
[367173783,1750686658080,-4060.0,0.00024657,2]
[367173784,1750686658107,-4654.87307754,0.00024657,2]
[367173785,1750686731946,203.0,0.00018961,2]
[367173786,1750686738904,490.00467131,0.00037852,60]
[367173787,1750686793645,500.0,0.00027382,120]
[367173788,1750686803839,226.279251,0.00027382,120]
[367173791,1750687166291,172.79,0.00027181,120]
[367173792,1750687176438,50000.0,0.00037853,60]
[367173793,1750687235515,5374.58,0.00037863,60]
[367173795,1750687331703,292.03,0.00013699,2]
[367173796,1750687391210,509.895263,0.00027394,120]
[367173797,1750687402212,500.0,0.00027394,120]
[367173798,1750687452160,203.0,0.00018376,2]
[367173799,1750687515533,202.0,0.00018376,2]
[367173804,1750687641201,4000.0,0.00022,30]
[367173812,1750687665899,4000.0,0.00022,30]
[367173814,1750687812132,203.0,0.00018863,2]
[367173818,1750687832376,-151.0,0.00020187,2]
[367173819,1750687832387,-292.03,0.00020187,2]
[367173820,1750687832396,-203.0,0.00020281,4]
[367173821,1750687832407,-779.905,0.00021169,2]
[367173822,1750687832419,-1264.07614047,0.00021169,2]
[367173823,1750687832430,-203.0,0.000217,6]
[367173824,1750687832439,-199.41831941,0.00022422,2]
[367173825,1750687832450,-1240.0,0.00022466,2]
[367173826,1750687832459,-1240.0,0.00022522,2]
[367173827,1750687832469,-1240.0,0.00022538,2]
[367173828,1750687832478,-300.0,0.00022758,2]
[367173829,1750687832489,-1200.0,0.00022758,2]
[367173830,1750687832498,-17317.67234936,0.00022759,2]
[367173831,1750687832510,-1240.0,0.00022824,2]
[367173832,1750687832520,-1240.0,0.00022827,2]
[367173833,1750687832529,-1240.0,0.000229,2]
[367173834,1750687832539,-1240.0,0.00022922,2]
[367173835,1750687832549,-200.0,0.00023,2]
[367173836,1750687832558,-696.0,0.00023066,2]
[367173837,1750687832568,-203.0,0.00023118,8]
[367173838,1750687832578,-696.0,0.00023201,2]
[367173839,1750687832587,-7118.54050101,0.00023225,2]
[367173840,1750687832597,-172.79,0.00023298,2]
[367173841,1750687832607,-1000.0,0.0002339,2]
[367173842,1750687832616,-280.13,0.00023396,2]
[367173843,1750687832626,-10852.28,0.00023396,2]
[367173844,1750687832636,-609.24,0.00023396,2]
[367173845,1750687832645,-360.35268975,0.000234,9]
[367173846,1750687832658,-82.95942599,0.000234,9]
[367173847,1750687832667,-443.31211562,0.000234,9]
[367173848,1750687832676,-1677.0,0.00023463,2]
[367173849,1750687832686,-848.0,0.00023477,2]
[367173850,1750687832695,-1562.77272178,0.00023479,2]
[367173851,1750687832707,-513.1,0.00023479,2]
[367173852,1750687832719,-1167.53973103,0.00023479,2]
[367173853,1750687832744,-1451.15754719,0.00023479,2]
[367173854,1750687832753,-150.0,0.0002348,2]
[367173856,1750687832766,-1023.75030425,0.00023522,2]
[367173857,1750687832777,-833.2960437,0.00023522,2]
[367173862,1750687832830,-2341.26444655,0.00023522,2]
[367173865,1750687832951,-624.73143593,0.00023522,2]
[367173875,1750687838480,-25176.94776957,0.00023522,2]
[367173876,1750687838489,-107117.5330336,0.00023523,2]
[367173877,1750687838499,-2951.0,0.00023523,2]
[367173878,1750687838508,-151.0,0.00023615,2]
[367173879,1750687838518,-409.68401112,0.00023615,2]
[367173880,1750687838527,-153.06184516,0.00023615,2]
[367173910,1750687838821,-207.4,0.00023615,2]
[367173912,1750687838831,-668.65185757,0.00023615,2]
[367173914,1750687838840,-443.31211562,0.00023659,9]
[367173916,1750687838851,-173.63,0.00023668,2]
[367173917,1750687838860,-1029.29319715,0.00023744,2]
[367173920,1750687838870,-168.0,0.00023761,2]
[367173922,1750687838879,-186.34,0.00023836,2]
[367173924,1750687838890,-665.0,0.00023843,2]
[367173925,1750687838900,-168.0,0.00023874,2]
[367173927,1750687838909,-168.0,0.00023892,2]
[367173929,1750687838919,-1161.0,0.00023931,2]
[367173931,1750687838928,-885.0,0.00023931,2]
[367173933,1750687838937,-156.0,0.00023931,2]
[367173935,1750687838947,-4097.0,0.00023931,2]
[367173937,1750687838956,-7138.0,0.0002398,2]
[367173939,1750687838965,-388.79,0.00024036,2]
[367173941,1750687838975,-443.31211562,0.00024038,10]
[367173943,1750687838985,-150.0,0.00024065,2]
[367173945,1750687838994,-150.0,0.00024117,2]
[367173947,1750687839003,-150.0,0.00024137,2]
[367173949,1750687839013,-999.99,0.00024174,2]
[367173951,1750687839025,-150.99,0.00024174,2]
[367173953,1750687839036,-773.31,0.00024174,2]
[367173956,1750687839047,-299.3,0.00024174,2]
[367173958,1750687839057,-408.77,0.00024174,2]
[367173960,1750687839067,-150.99,0.00024174,2]
[367173962,1750687839077,-610.61,0.00024174,2]
[367173964,1750687839086,-9999.99,0.00024174,2]
[367173966,1750687839096,-490.69,0.00024174,2]
[367173968,1750687839105,-299.99,0.00024174,7]
[367173969,1750687839115,-9999.99,0.00024174,2]
[367173972,1750687839125,-9999.99,0.00024174,2]
[367173974,1750687839135,-499.99,0.00024174,2]
[367173975,1750687839144,-1483.61,0.00024174,2]
[367173978,1750687839154,-150.0,0.00024179,2]
[367173980,1750687839164,-341.82,0.00024228,2]
[367173982,1750687839173,-463.26,0.00024228,2]
[367173984,1750687839183,-151.06,0.00024228,2]
[367173986,1750687839192,-301.2,0.00024228,2]
[367173988,1750687839201,-360.83,0.00024228,2]
[367173990,1750687839211,-150.0,0.00024245,2]
[367173992,1750687839221,-150.0,0.00024258,2]
[367173994,1750687839230,-150.0,0.00024259,2]
[367173996,1750687839240,-150.0,0.00024312,2]
[367173998,1750687839250,-150.0,0.0002434,2]
[367174000,1750687839259,-150.0,0.00024366,2]
[367174002,1750687839272,-150.0,0.00024373,2]
[367174004,1750687839282,-308.86,0.00024375,2]
[367174006,1750687839293,-455.44,0.00024375,2]
[367174008,1750687839303,-915.33398,0.00024394,4]
[367174010,1750687839313,-300.0,0.000244,8]
[367174012,1750687839323,-443.31211562,0.00024417,11]
[367174014,1750687839333,-158.21,0.000245,2]
[367174015,1750687839343,-600.0,0.000245,8]
[367174018,1750687839353,-203.0,0.00024537,10]
[367174019,1750687839363,-150.0,0.00024537,2]
[367174021,1750687839373,-150.0,0.00024542,2]
[367174023,1750687839382,-150.0,0.00024548,2]
[367174025,1750687839391,-546.2696,0.00024557,3]
[367174027,1750687839401,-192.49155384,0.00024557,2]
[367174029,1750687839410,-11646.7254932,0.00024557,2]
[367174031,1750687839420,-150.0,0.00024578,2]
[367174034,1750687839430,-1000.0,0.000246,8]
[367174036,1750687839439,-150.0,0.00024615,2]
[367174037,1750687839448,-150.0,0.00024622,2]
[367174039,1750687839457,-360.72770163,0.00024639,2]
[367174042,1750687839466,-150.0,0.00024639,2]
[367174044,1750687839476,-552.36583176,0.00024639,2]
[367174046,1750687839485,-500.0,0.00024639,2]
[367174048,1750687839495,-500.0,0.00024639,2]
[367174049,1750687839504,-1025848.7768504,0.0002464,2]
[367174050,1750687839513,-671.30490384,0.00024647,2]
[367174051,1750687839524,-11646.72549316,0.00024648,2]
[367174052,1750687839533,-150.0,0.00024656,2]
[367174053,1750687839543,-150.0,0.00024656,2]
[367174054,1750687839553,-500.0,0.00024656,2]
[367174055,1750687839561,-384.81688743,0.00024656,2]
[367174056,1750687839570,-194.92645768,0.00024656,2]
[367174057,1750687839579,-572.78563804,0.00024656,2]
[367174058,1750687839588,-572.78563804,0.00024656,2]
[367174059,1750687839598,-572.78563804,0.00024656,2]
[367174060,1750687839607,-500.0,0.00024656,2]
[367174061,1750687839616,-572.78563804,0.00024656,2]
[367174062,1750687839625,-572.78563804,0.00024656,2]
[367174063,1750687839634,-530.40253703,0.00024656,2]
[367174064,1750687839645,-572.78563804,0.00024656,2]
[367174065,1750687839654,-572.78563804,0.00024656,2]
[367174066,1750687839664,-572.78563804,0.00024656,2]
[367174067,1750687839673,-572.78563804,0.00024656,2]
[367174068,1750687839682,-572.78563804,0.00024656,2]
[367174069,1750687839691,-572.78563804,0.00024656,2]
[367174070,1750687839700,-572.78563804,0.00024656,2]
[367174071,1750687839709,-572.78563804,0.00024656,2]
[367174073,1750687839718,-572.78563804,0.00024656,2]
[367174075,1750687839728,-572.78563804,0.00024656,2]
[367174077,1750687839737,-251170.39376751,0.00024657,2]
[367174079,1750687839746,-490.0,0.00024657,2]
[367174081,1750687839756,-490.0,0.00024657,2]
[367174083,1750687839766,-644.43,0.00024657,2]
[367174085,1750687839776,-185.13823897,0.00024657,2]
[367174087,1750687839785,-490.0,0.00024657,2]
[367174089,1750687839795,-490.0,0.00024657,2]
[367174091,1750687839805,-490.0,0.00024657,2]
[367174093,1750687839819,-490.0,0.00024657,2]
[367174095,1750687839828,-1000.0,0.00024657,2]
[367174097,1750687839838,-490.0,0.00024657,2]
[367174099,1750687839847,-490.0,0.00024657,2]
[367174101,1750687839856,-490.0,0.00024657,2]
[367174103,1750687839866,-752.83,0.00024657,2]
[367174105,1750687839875,-490.0,0.00024657,2]
[367174107,1750687839884,-490.0,0.00024657,2]
[367174109,1750687839894,-490.0,0.00024657,2]
[367174111,1750687839903,-227.323069,0.00024657,2]
[367174113,1750687839912,-490.0,0.00024657,2]
[367174115,1750687839921,-490.0,0.00024657,2]
[367174117,1750687839931,-161.446677,0.00024657,2]
[367174119,1750687839940,-490.0,0.00024657,2]
[367174121,1750687839949,-491.3665211,0.00024657,2]
[367174123,1750687839959,-490.0,0.00024657,2]
[367174125,1750687839968,-220.81996294,0.00024657,2]
[367174127,1750687839977,-490.0,0.00024657,2]
[367174129,1750687839987,-490.0,0.00024657,2]
[367174131,1750687839996,-353.74687408,0.00024657,2]
[367174133,1750687840006,-877.36,0.00024657,2]
[367174135,1750687840015,-153.541893,0.00024657,2]
[367174137,1750687840025,-231.75147289,0.00024657,2]
[367174139,1750687840034,-151.142223,0.00024657,2]
[367174141,1750687840044,-490.0,0.00024657,2]
[367174142,1750687840053,-490.0,0.00024657,2]
[367174144,1750687840063,-490.0,0.00024657,2]
[367174146,1750687840072,-497.3195658,0.00024657,2]
[367174149,1750687840082,-421.20669736,0.00024657,2]
[367174151,1750687840092,-742.69,0.00024657,2]
[367174152,1750687840102,-490.97121393,0.00024657,2]
[367174155,1750687840112,-490.0,0.00024657,2]
[367174157,1750687840121,-490.0,0.00024657,2]
[367174159,1750687840131,-490.0,0.00024657,2]
[367174160,1750687840141,-2181.229462,0.00024657,2]
[367174162,1750687840150,-490.0,0.00024657,2]